[Event "*** SCC Grand Prix: Titled Tuesday Blitz"]
[Site "Chess.com"]
[Date "2020.10.13"]
[Round "2"]
[White "starworld123"]
[Black "chenxiaoyuer"]
[Result "0-1"]
[WhiteElo "2719"]
[BlackElo "2522"]
[TimeControl "180+1"]
[EndTime "10:13:15 PDT"]
[Termination "chenxiaoyuer won by checkmate"]

1. Nf3 {[%clk 0:03:00.9]} 1... Nf6 {[%clk 0:02:58.9]} 2. c4 {[%clk 0:02:59.8]}
2... g6 {[%clk 0:02:59.2]} 3. Nc3 {[%clk 0:02:59]} 3... Bg7 {[%clk 0:03:00.1]}
4. g3 {[%clk 0:02:58.8]} 4... O-O {[%clk 0:02:59.5]} 5. Bg2 {[%clk 0:02:59.4]}
5... d6 {[%clk 0:03:00.3]} 6. d4 {[%clk 0:02:59.1]} 6... Nc6 {[%clk 0:03:00]} 7.
O-O {[%clk 0:02:58.5]} 7... Bg4 {[%clk 0:03:00.6]} 8. d5 {[%clk 0:02:58.2]} 8...
Na5 {[%clk 0:02:59.1]} 9. Nd2 {[%clk 0:02:58]} 9... c5 {[%clk 0:02:58.5]} 10.
Qc2 {[%clk 0:02:56.9]} 10... a6 {[%clk 0:02:57.9]} 11. b3 {[%clk 0:02:55]} 11...
b5 {[%clk 0:02:56.5]} 12. Bb2 {[%clk 0:02:54.8]} 12... Rb8 {[%clk 0:02:48.9]}
13. Rab1 {[%clk 0:02:55]} 13... e5 {[%clk 0:02:39.1]} 14. e4 {[%clk 0:02:53.5]}
14... Nh5 {[%clk 0:02:35.1]} 15. h3 {[%clk 0:02:49.7]} 15... Bd7 {[%clk
0:02:34.7]} 16. Nd1 {[%clk 0:02:49.6]} 16... f5 {[%clk 0:02:33.3]} 17. exf5
{[%clk 0:02:50.4]} 17... gxf5 {[%clk 0:02:32.2]} 18. Bc3 {[%clk 0:02:49.6]}
18... b4 {[%clk 0:02:26.6]} 19. Bb2 {[%clk 0:02:49.1]} 19... f4 {[%clk
0:02:12.2]} 20. g4 {[%clk 0:02:47]} 20... f3 {[%clk 0:02:10]} 21. Bxf3 {[%clk
0:02:47.5]} 21... Nf4 {[%clk 0:02:07.6]} 22. Bg2 {[%clk 0:02:43]} 22... Bxg4
{[%clk 0:01:43.6]} 23. hxg4 {[%clk 0:02:41]} 23... Ne2+ {[%clk 0:01:33.8]} 24.
Kh2 {[%clk 0:02:39.1]} 24... Qh4+ {[%clk 0:01:34]} 25. Bh3 {[%clk 0:02:39.3]}
25... Nf4 {[%clk 0:01:33.3]} 26. Ne3 {[%clk 0:02:30.4]} 26... Qxh3+ {[%clk
0:01:32.6]} 27. Kg1 {[%clk 0:02:30.6]} 27... Ne2# {[%clk 0:01:33.1]} 0-1

[Event "*** SCC Grand Prix: Titled Tuesday Blitz"]
[Site "Chess.com"]
[Date "2020.10.13"]
[Round "2"]
[White "Savagelittlemole"]
[Black "AlexeiShirov"]
[Result "0-1"]
[WhiteElo "2564"]
[BlackElo "2849"]
[TimeControl "180+1"]
[EndTime "10:13:27 PDT"]
[Termination "AlexeiShirov won by resignation"]

1. e4 {[%clk 0:03:00.9]} 1... e5 {[%clk 0:02:58.9]} 2. Nf3 {[%clk 0:03:00.5]}
2... Nc6 {[%clk 0:02:58.8]} 3. Bc4 {[%clk 0:02:59.7]} 3... Nf6 {[%clk
0:02:57.9]} 4. d3 {[%clk 0:02:59.5]} 4... h6 {[%clk 0:02:57]} 5. c3 {[%clk
0:02:57.6]} 5... g5 {[%clk 0:02:55.5]} 6. a4 {[%clk 0:02:47.1]} 6... g4 {[%clk
0:02:51.1]} 7. Nfd2 {[%clk 0:02:39.5]} 7... d5 {[%clk 0:02:50.1]} 8. Ba2 {[%clk
0:02:30.4]} 8... Be6 {[%clk 0:02:38.7]} 9. Qe2 {[%clk 0:02:18.2]} 9... Qd7
{[%clk 0:02:36.5]} 10. exd5 {[%clk 0:02:01]} 10... Nxd5 {[%clk 0:02:35]} 11.
Bxd5 {[%clk 0:01:58.9]} 11... Qxd5 {[%clk 0:02:32.4]} 12. Qe4 {[%clk 0:01:36.8]}
12... O-O-O {[%clk 0:02:29.5]} 13. Qxd5 {[%clk 0:01:37]} 13... Rxd5 {[%clk
0:02:28.7]} 14. Ke2 {[%clk 0:01:25.4]} 14... Bg7 {[%clk 0:02:26.6]} 15. Rd1
{[%clk 0:01:24.8]} 15... Rhd8 {[%clk 0:02:24.4]} 16. Nc4 {[%clk 0:01:14.9]}
16... Rxd3 {[%clk 0:02:21.3]} 17. Rxd3 {[%clk 0:01:10.4]} 17... Bxc4 {[%clk
0:02:20]} 0-1

[Event "*** SCC Grand Prix: Titled Tuesday Blitz"]
[Site "Chess.com"]
[Date "2020.10.13"]
[Round "2"]
[White "Slovak_fighter2000"]
[Black "ElMosho7u7r"]
[Result "1-0"]
[WhiteElo "2407"]
[BlackElo "2153"]
[TimeControl "180+1"]
[EndTime "10:13:36 PDT"]
[Termination "Slovak_fighter2000 won by resignation"]

1. Nf3 {[%clk 0:02:52.7]} 1... d5 {[%clk 0:03:00]} 2. g3 {[%clk 0:02:51.2]} 2...
Nf6 {[%clk 0:03:00.2]} 3. Bg2 {[%clk 0:02:51.3]} 3... Bf5 {[%clk 0:03:00.6]} 4.
O-O {[%clk 0:02:51.5]} 4... h6 {[%clk 0:03:01.1]} 5. d3 {[%clk 0:02:51.9]} 5...
e6 {[%clk 0:03:01.5]} 6. c4 {[%clk 0:02:51.8]} 6... c6 {[%clk 0:03:01.4]} 7. Qb3
{[%clk 0:02:51.7]} 7... Qb6 {[%clk 0:03:01]} 8. cxd5 {[%clk 0:02:50.5]} 8...
exd5 {[%clk 0:02:38.4]} 9. Qc2 {[%clk 0:02:49.8]} 9... Be7 {[%clk 0:02:37.1]}
10. Nc3 {[%clk 0:02:48.2]} 10... Nbd7 {[%clk 0:02:36.4]} 11. e4 {[%clk
0:02:45.6]} 11... Be6 {[%clk 0:02:32.7]} 12. Be3 {[%clk 0:02:38.2]} 12... Qd8
{[%clk 0:02:05.2]} 13. Nd4 {[%clk 0:02:29.6]} 13... Ng4 {[%clk 0:01:46.2]} 14.
exd5 {[%clk 0:02:25.2]} 14... cxd5 {[%clk 0:01:26.8]} 15. Nxd5 {[%clk
0:02:21.4]} 15... Rc8 {[%clk 0:01:27.2]} 16. Qe2 {[%clk 0:02:15.8]} 16... Nxe3
{[%clk 0:01:18.6]} 17. fxe3 {[%clk 0:02:15]} 17... Bc5 {[%clk 0:01:15.8]} 18.
Nxe6 {[%clk 0:02:12.2]} 1-0

[Event "*** SCC Grand Prix: Titled Tuesday Blitz"]
[Site "Chess.com"]
[Date "2020.10.13"]
[Round "2"]
[White "Kaua18"]
[Black "xamax2000"]
[Result "0-1"]
[WhiteElo "2338"]
[BlackElo "2672"]
[TimeControl "180+1"]
[EndTime "10:14:29 PDT"]
[Termination "xamax2000 won by resignation"]

1. e4 {[%clk 0:03:00.2]} 1... c5 {[%clk 0:02:59.4]} 2. Nf3 {[%clk 0:03:00.4]}
2... d6 {[%clk 0:02:56.1]} 3. d4 {[%clk 0:02:59.9]} 3... cxd4 {[%clk 0:02:56.4]}
4. Nxd4 {[%clk 0:03:00.5]} 4... Nf6 {[%clk 0:02:57]} 5. Nc3 {[%clk 0:02:59.8]}
5... g6 {[%clk 0:02:56.9]} 6. Be3 {[%clk 0:02:59.6]} 6... a6 {[%clk 0:02:56.9]}
7. f3 {[%clk 0:03:00.1]} 7... b5 {[%clk 0:02:56.9]} 8. Qd2 {[%clk 0:02:59.6]}
8... Bb7 {[%clk 0:02:56.2]} 9. O-O-O {[%clk 0:02:59.6]} 9... Nbd7 {[%clk
0:02:51.6]} 10. Kb1 {[%clk 0:02:58.7]} 10... Nb6 {[%clk 0:02:49.7]} 11. h4
{[%clk 0:02:55.6]} 11... h5 {[%clk 0:02:48.5]} 12. Bg5 {[%clk 0:02:44.7]} 12...
Bg7 {[%clk 0:02:48.1]} 13. Nb3 {[%clk 0:02:35.5]} 13... Rc8 {[%clk 0:02:44.1]}
14. Na5 {[%clk 0:02:34.9]} 14... Ba8 {[%clk 0:02:42.3]} 15. Qe3 {[%clk
0:02:07.4]} 15... Qc7 {[%clk 0:02:36.2]} 16. a3 {[%clk 0:01:52.8]} 16... Nfd7
{[%clk 0:01:52.6]} 17. e5 {[%clk 0:01:37.8]} 17... Nxe5 {[%clk 0:01:45.5]} 18.
f4 {[%clk 0:01:37.4]} 18... Ng4 {[%clk 0:01:43.5]} 19. Nxb5 {[%clk 0:01:15.9]}
19... Nxe3 {[%clk 0:01:37.1]} 20. Nxc7+ {[%clk 0:01:15.3]} 20... Rxc7 {[%clk
0:01:38]} 21. Re1 {[%clk 0:01:13.5]} 21... Nxf1 {[%clk 0:01:34.2]} 22. Rhxf1
{[%clk 0:01:10.9]} 22... f6 {[%clk 0:01:34.3]} 0-1

[Event "*** SCC Grand Prix: Titled Tuesday Blitz"]
[Site "Chess.com"]
[Date "2020.10.13"]
[Round "2"]
[White "romulocardoso"]
[Black "PotapovaM"]
[Result "0-1"]
[WhiteElo "2073"]
[BlackElo "2533"]
[TimeControl "180+1"]
[EndTime "10:14:30 PDT"]
[Termination "PotapovaM won by checkmate"]

1. e4 {[%clk 0:03:00.9]} 1... c5 {[%clk 0:02:59.9]} 2. Nf3 {[%clk 0:03:00.9]}
2... d6 {[%clk 0:03:00]} 3. d4 {[%clk 0:03:01.1]} 3... cxd4 {[%clk 0:03:00.9]}
4. Nxd4 {[%clk 0:03:02]} 4... Nf6 {[%clk 0:03:01.5]} 5. Nc3 {[%clk 0:03:01.9]}
5... a6 {[%clk 0:03:01.9]} 6. Be2 {[%clk 0:03:01.5]} 6... e5 {[%clk 0:03:01.8]}
7. Nb3 {[%clk 0:03:00.7]} 7... Be7 {[%clk 0:03:01.8]} 8. O-O {[%clk 0:03:00.8]}
8... O-O {[%clk 0:03:02.1]} 9. Kh1 {[%clk 0:03:00.2]} 9... Nc6 {[%clk
0:03:00.8]} 10. f4 {[%clk 0:03:00.4]} 10... b5 {[%clk 0:02:57.7]} 11. f5 {[%clk
0:03:00]} 11... Bb7 {[%clk 0:02:41.9]} 12. Bf3 {[%clk 0:02:57.3]} 12... a5
{[%clk 0:02:34.3]} 13. g4 {[%clk 0:02:52.9]} 13... a4 {[%clk 0:02:32.7]} 14. Nd2
{[%clk 0:02:52.7]} 14... b4 {[%clk 0:02:25.4]} 15. Nd5 {[%clk 0:02:52.2]} 15...
Nxd5 {[%clk 0:02:26]} 16. exd5 {[%clk 0:02:53.1]} 16... Nd4 {[%clk 0:02:26.9]}
17. Bg2 {[%clk 0:02:51.8]} 17... Ra5 {[%clk 0:02:19.6]} 18. c4 {[%clk
0:02:49.7]} 18... bxc3 {[%clk 0:02:00.5]} 19. bxc3 {[%clk 0:02:50.6]} 19... Nb5
{[%clk 0:02:00.9]} 20. Nc4 {[%clk 0:02:37.1]} 20... Nxc3 {[%clk 0:01:49.1]} 21.
Qd2 {[%clk 0:02:36.5]} 21... Rc5 {[%clk 0:01:48]} 22. Qxc3 {[%clk 0:02:35.7]}
22... Ba6 {[%clk 0:01:45.8]} 23. g5 {[%clk 0:02:18]} 23... Bxc4 {[%clk
0:01:43.7]} 24. Be3 {[%clk 0:02:09.4]} 24... Bxf1 {[%clk 0:01:36.4]} 25. Bxc5
{[%clk 0:02:08.6]} 25... Bxg2+ {[%clk 0:01:36.9]} 26. Kxg2 {[%clk 0:02:08.9]}
26... dxc5 {[%clk 0:01:37.8]} 27. h4 {[%clk 0:02:05.7]} 27... Qxd5+ {[%clk
0:01:36.4]} 28. Kh3 {[%clk 0:02:05.8]} 28... Qd4 {[%clk 0:01:32.6]} 29. Qg3
{[%clk 0:02:04.8]} 29... Qxa1 {[%clk 0:01:29.9]} 30. f6 {[%clk 0:02:03.7]} 30...
Qh1+ {[%clk 0:01:28.9]} 31. Kg4 {[%clk 0:02:03.1]} 31... Qe4+ {[%clk 0:01:27.1]}
32. Kh5 {[%clk 0:02:03.4]} 32... g6+ {[%clk 0:01:24.8]} 33. Kh6 {[%clk
0:02:03.3]} 33... Bd6 {[%clk 0:01:19.3]} 34. a3 {[%clk 0:02:02.4]} 34... Rd8
{[%clk 0:01:19.2]} 35. h5 {[%clk 0:02:01.4]} 35... Bf8# {[%clk 0:01:19]} 0-1

[Event "*** SCC Grand Prix: Titled Tuesday Blitz"]
[Site "Chess.com"]
[Date "2020.10.13"]
[Round "2"]
[White "KatarinaOstojic"]
[Black "PavelShkapenko"]
[Result "0-1"]
[WhiteElo "2332"]
[BlackElo "2707"]
[TimeControl "180+1"]
[EndTime "10:14:30 PDT"]
[Termination "PavelShkapenko won by resignation"]

1. d4 {[%clk 0:03:00.9]} 1... Nf6 {[%clk 0:02:53.4]} 2. Nf3 {[%clk 0:03:00.1]}
2... e6 {[%clk 0:02:53.2]} 3. c4 {[%clk 0:03:00.1]} 3... Bb4+ {[%clk 0:02:53.1]}
4. Bd2 {[%clk 0:03:00]} 4... Qe7 {[%clk 0:02:52.8]} 5. a3 {[%clk 0:03:00]} 5...
Bxd2+ {[%clk 0:02:52.1]} 6. Nbxd2 {[%clk 0:03:00.9]} 6... d6 {[%clk 0:02:52.1]}
7. e4 {[%clk 0:03:00.4]} 7... e5 {[%clk 0:02:52.2]} 8. d5 {[%clk 0:03:00.7]}
8... O-O {[%clk 0:02:52.1]} 9. Be2 {[%clk 0:03:00.3]} 9... a5 {[%clk 0:02:52]}
10. O-O {[%clk 0:03:00.9]} 10... a4 {[%clk 0:02:50.1]} 11. b4 {[%clk 0:02:55.9]}
11... axb3 {[%clk 0:02:49.6]} 12. Qxb3 {[%clk 0:02:55.7]} 12... Na6 {[%clk
0:02:48.7]} 13. Ne1 {[%clk 0:02:54.8]} 13... Nc5 {[%clk 0:02:48.4]} 14. Qc2
{[%clk 0:02:52.6]} 14... Nfd7 {[%clk 0:02:42.1]} 15. Nd3 {[%clk 0:02:51.2]}
15... Nxd3 {[%clk 0:02:41.7]} 16. Bxd3 {[%clk 0:02:52.1]} 16... Nc5 {[%clk
0:02:41.9]} 17. f3 {[%clk 0:02:48.1]} 17... Bd7 {[%clk 0:02:41.3]} 18. Be2
{[%clk 0:02:44.6]} 18... Ra7 {[%clk 0:02:39.5]} 19. Qc3 {[%clk 0:02:38.5]} 19...
f5 {[%clk 0:02:38.4]} 20. Qe3 {[%clk 0:02:19.8]} 20... b6 {[%clk 0:02:30.5]} 21.
Nb3 {[%clk 0:02:18.1]} 21... Nxb3 {[%clk 0:02:25.2]} 22. Qxb3 {[%clk 0:02:19]}
22... Qg5 {[%clk 0:02:25.4]} 23. Qd3 {[%clk 0:02:08.5]} 23... Rf6 {[%clk
0:02:20.3]} 24. Kh1 {[%clk 0:01:58.3]} 24... Rh6 {[%clk 0:02:16.1]} 25. exf5
{[%clk 0:01:42.3]} 25... Bxf5 {[%clk 0:02:15.2]} 26. Qd1 {[%clk 0:01:39.1]}
26... Qg3 {[%clk 0:02:11.3]} 27. Kg1 {[%clk 0:01:34]} 27... Rxh2 {[%clk
0:02:07.4]} 28. Rf2 {[%clk 0:01:33.1]} 28... Qh4 {[%clk 0:02:02.2]} 0-1

[Event "*** SCC Grand Prix: Titled Tuesday Blitz"]
[Site "Chess.com"]
[Date "2020.10.13"]
[Round "2"]
[White "shriyanasmallya"]
[Black "Jungle_Jaguar"]
[Result "0-1"]
[WhiteElo "1603"]
[BlackElo "2630"]
[TimeControl "180+1"]
[EndTime "10:14:33 PDT"]
[Termination "Jungle_Jaguar won by resignation"]

1. e4 {[%clk 0:03:00.9]} 1... c5 {[%clk 0:03:00.1]} 2. Nc3 {[%clk 0:03:00.6]}
2... d6 {[%clk 0:02:56.9]} 3. f4 {[%clk 0:03:00.5]} 3... Nf6 {[%clk 0:02:56.9]}
4. Nf3 {[%clk 0:03:00.5]} 4... g6 {[%clk 0:02:57.5]} 5. Bb5+ {[%clk 0:03:00]}
5... Nc6 {[%clk 0:02:56.9]} 6. O-O {[%clk 0:02:59.3]} 6... Bg7 {[%clk 0:02:57]}
7. d3 {[%clk 0:02:59.4]} 7... O-O {[%clk 0:02:57.4]} 8. Qe1 {[%clk 0:02:59.1]}
8... Nd4 {[%clk 0:02:51.7]} 9. Nxd4 {[%clk 0:02:53.7]} 9... cxd4 {[%clk
0:02:52.6]} 10. Nd5 {[%clk 0:02:53.9]} 10... Nxd5 {[%clk 0:02:45.8]} 11. exd5
{[%clk 0:02:51.7]} 11... a6 {[%clk 0:02:46.4]} 12. Ba4 {[%clk 0:02:51.7]} 12...
b5 {[%clk 0:02:39.1]} 13. Bb3 {[%clk 0:02:51.6]} 13... Bf5 {[%clk 0:02:25]} 14.
Bd2 {[%clk 0:02:50.6]} 14... Qd7 {[%clk 0:02:24.5]} 15. a4 {[%clk 0:02:49.1]}
15... h5 {[%clk 0:02:16.6]} 16. axb5 {[%clk 0:02:47.6]} 16... axb5 {[%clk
0:02:17.5]} 17. Qg3 {[%clk 0:02:44.6]} 17... Kh7 {[%clk 0:02:17.1]} 18. h3
{[%clk 0:02:41.4]} 18... Bf6 {[%clk 0:02:15.1]} 19. Qf3 {[%clk 0:02:39.6]} 19...
Rfc8 {[%clk 0:02:11.4]} 20. Kf2 {[%clk 0:02:37.6]} 20... h4 {[%clk 0:02:07.9]}
21. g4 {[%clk 0:02:29.9]} 21... hxg3+ {[%clk 0:02:06.6]} 22. Qxg3 {[%clk
0:02:29.8]} 22... Kg7 {[%clk 0:02:06.7]} 23. h4 {[%clk 0:02:23.8]} 23... Rh8
{[%clk 0:02:06.5]} 24. Rxa8 {[%clk 0:02:22.1]} 24... Bxh4 {[%clk 0:02:01.9]} 25.
Rxh8 {[%clk 0:02:13.9]} 25... Bxg3+ {[%clk 0:02:01.2]} 26. Kxg3 {[%clk
0:02:13.9]} 26... Kxh8 {[%clk 0:02:01.9]} 27. Rh1+ {[%clk 0:02:13.4]} 27... Kg7
{[%clk 0:02:01.9]} 28. c3 {[%clk 0:02:11]} 28... Bxd3 {[%clk 0:01:59.9]} 29.
cxd4 {[%clk 0:02:10.4]} 29... Be2 {[%clk 0:01:59.8]} 30. Bc3 {[%clk 0:02:10]}
30... Qg4+ {[%clk 0:01:59.2]} 31. Kf2 {[%clk 0:02:08.9]} 31... Qf3+ {[%clk
0:01:56.2]} 32. Ke1 {[%clk 0:02:08.2]} 32... Qxh1+ {[%clk 0:01:50.8]} 33. Kxe2
{[%clk 0:02:07.9]} 33... Qh2+ {[%clk 0:01:51.4]} 34. Kd3 {[%clk 0:02:07.7]}
34... Qxf4 {[%clk 0:01:50.2]} 35. Bd2 {[%clk 0:02:07.1]} 35... Qf3+ {[%clk
0:01:48.1]} 36. Kc2 {[%clk 0:02:07]} 36... f5 {[%clk 0:01:43.2]} 37. Ba2 {[%clk
0:02:02.6]} 37... f4 {[%clk 0:01:41.6]} 38. Bb1 {[%clk 0:02:01]} 38... g5 {[%clk
0:01:41.7]} 39. b3 {[%clk 0:02:01]} 39... g4 {[%clk 0:01:42.1]} 40. Kb2 {[%clk
0:02:01.1]} 40... g3 {[%clk 0:01:42.7]} 41. Bf5 {[%clk 0:01:57.8]} 41... g2
{[%clk 0:01:43]} 0-1

[Event "*** SCC Grand Prix: Titled Tuesday Blitz"]
[Site "Chess.com"]
[Date "2020.10.13"]
[Round "2"]
[White "Mr_Sinigami"]
[Black "TC2304"]
[Result "1-0"]
[WhiteElo "2490"]
[BlackElo "2273"]
[TimeControl "180+1"]
[EndTime "10:14:34 PDT"]
[Termination "Mr_Sinigami won by resignation"]

1. d4 {[%clk 0:03:00.9]} 1... Nf6 {[%clk 0:02:59.4]} 2. Nf3 {[%clk 0:03:00.6]}
2... c5 {[%clk 0:02:59.9]} 3. d5 {[%clk 0:02:59.8]} 3... e6 {[%clk 0:03:00.3]}
4. c4 {[%clk 0:02:59.4]} 4... exd5 {[%clk 0:03:00.5]} 5. cxd5 {[%clk 0:02:59.5]}
5... d6 {[%clk 0:03:01.3]} 6. Nc3 {[%clk 0:02:58.9]} 6... g6 {[%clk 0:03:01.8]}
7. g3 {[%clk 0:02:58.9]} 7... Bg7 {[%clk 0:03:02.4]} 8. Bg2 {[%clk 0:02:59.5]}
8... O-O {[%clk 0:03:03.2]} 9. O-O {[%clk 0:03:00]} 9... Re8 {[%clk 0:03:03.9]}
10. Nd2 {[%clk 0:03:00.5]} 10... Nbd7 {[%clk 0:03:02.8]} 11. a4 {[%clk
0:02:58.6]} 11... Nh5 {[%clk 0:02:44.8]} 12. Nb5 {[%clk 0:02:48.9]} 12... Bf8
{[%clk 0:02:37.3]} 13. Nc4 {[%clk 0:02:36.5]} 13... Ne5 {[%clk 0:02:27.9]} 14.
Nxe5 {[%clk 0:02:30.3]} 14... Rxe5 {[%clk 0:02:28.8]} 15. Na3 {[%clk 0:02:16.8]}
15... f5 {[%clk 0:02:04.6]} 16. Nc4 {[%clk 0:02:11.1]} 16... Re8 {[%clk
0:02:03.9]} 17. b3 {[%clk 0:01:54.9]} 17... Bg7 {[%clk 0:01:55.4]} 18. Ra2
{[%clk 0:01:54.4]} 18... a6 {[%clk 0:01:46.8]} 19. a5 {[%clk 0:01:52.8]} 19...
Bd7 {[%clk 0:01:46]} 20. Nxd6 {[%clk 0:01:48.8]} 20... Rf8 {[%clk 0:01:28.1]}
21. Nxb7 {[%clk 0:01:34.5]} 21... f4 {[%clk 0:01:04.6]} 22. Nxd8 {[%clk
0:01:33.2]} 1-0

[Event "*** SCC Grand Prix: Titled Tuesday Blitz"]
[Site "Chess.com"]
[Date "2020.10.13"]
[Round "2"]
[White "Airquake"]
[Black "MisiekZielony"]
[Result "1-0"]
[WhiteElo "2641"]
[BlackElo "2244"]
[TimeControl "180+1"]
[EndTime "10:14:35 PDT"]
[Termination "Airquake won by resignation"]

1. e4 {[%clk 0:03:00.9]} 1... Nf6 {[%clk 0:02:59.8]} 2. e5 {[%clk 0:03:00.2]}
2... Nd5 {[%clk 0:02:59.9]} 3. d4 {[%clk 0:03:00.1]} 3... d6 {[%clk 0:03:00]} 4.
exd6 {[%clk 0:03:01]} 4... exd6 {[%clk 0:03:00.1]} 5. Nf3 {[%clk 0:03:01]} 5...
Be7 {[%clk 0:03:00.3]} 6. Be2 {[%clk 0:03:01.3]} 6... O-O {[%clk 0:03:00.2]} 7.
O-O {[%clk 0:03:01.9]} 7... Bg4 {[%clk 0:02:54.1]} 8. h3 {[%clk 0:03:01.6]} 8...
Bh5 {[%clk 0:02:53.9]} 9. b3 {[%clk 0:03:01.5]} 9... Nc6 {[%clk 0:02:49.7]} 10.
Bb2 {[%clk 0:03:01.2]} 10... Nf4 {[%clk 0:02:49.3]} 11. Nbd2 {[%clk 0:02:47.7]}
11... Nxe2+ {[%clk 0:02:12.5]} 12. Qxe2 {[%clk 0:02:46.3]} 12... d5 {[%clk
0:02:10.4]} 13. Qb5 {[%clk 0:02:29.4]} 13... Rb8 {[%clk 0:02:03.1]} 14. c4
{[%clk 0:02:23.8]} 14... a6 {[%clk 0:01:49.7]} 15. Qxd5 {[%clk 0:02:23.8]} 15...
Qxd5 {[%clk 0:01:49.5]} 16. cxd5 {[%clk 0:02:24.7]} 16... Nb4 {[%clk 0:01:49.9]}
17. Ne5 {[%clk 0:02:21.5]} 17... Nxd5 {[%clk 0:01:43.2]} 18. Nd7 {[%clk
0:02:21.4]} 18... Rfd8 {[%clk 0:01:38.5]} 19. Nxb8 {[%clk 0:02:21.3]} 19... Rxb8
{[%clk 0:01:38.8]} 20. Nc4 {[%clk 0:02:20.3]} 20... f6 {[%clk 0:01:31.2]} 21.
Rac1 {[%clk 0:02:16.3]} 21... Kf7 {[%clk 0:01:14.9]} 22. Ne3 {[%clk 0:02:14.2]}
22... Nxe3 {[%clk 0:01:03.5]} 23. fxe3 {[%clk 0:02:13.5]} 23... Bd6 {[%clk
0:00:52.1]} 24. e4 {[%clk 0:02:13.4]} 1-0

[Event "*** SCC Grand Prix: Titled Tuesday Blitz"]
[Site "Chess.com"]
[Date "2020.10.13"]
[Round "2"]
[White "Colombiano07"]
[Black "Triumphmate"]
[Result "0-1"]
[WhiteElo "2241"]
[BlackElo "2458"]
[TimeControl "180+1"]
[EndTime "10:14:35 PDT"]
[Termination "Triumphmate won by resignation"]

1. d4 {[%clk 0:03:00.9]} 1... d5 {[%clk 0:03:00.9]} 2. Nc3 {[%clk 0:03:01]} 2...
e6 {[%clk 0:03:01.4]} 3. e4 {[%clk 0:02:56.2]} 3... Nf6 {[%clk 0:03:01.3]} 4.
Bg5 {[%clk 0:02:55.6]} 4... Be7 {[%clk 0:03:00.6]} 5. e5 {[%clk 0:02:56]} 5...
Nfd7 {[%clk 0:03:00.6]} 6. Bxe7 {[%clk 0:02:56.9]} 6... Qxe7 {[%clk 0:03:01.2]}
7. f4 {[%clk 0:02:57.8]} 7... a6 {[%clk 0:02:59.5]} 8. Nf3 {[%clk 0:02:57.7]}
8... c5 {[%clk 0:02:59.9]} 9. Qd2 {[%clk 0:02:58]} 9... Nc6 {[%clk 0:03:00.4]}
10. O-O-O {[%clk 0:02:58.1]} 10... cxd4 {[%clk 0:03:00.5]} 11. Nxd4 {[%clk
0:02:58.1]} 11... Nc5 {[%clk 0:03:01.4]} 12. Kb1 {[%clk 0:02:51.4]} 12... Bd7
{[%clk 0:03:00.5]} 13. Be2 {[%clk 0:02:51.2]} 13... O-O-O {[%clk 0:03:00.1]} 14.
Rhe1 {[%clk 0:02:47.6]} 14... Kb8 {[%clk 0:02:59.6]} 15. Bf3 {[%clk 0:02:47.7]}
15... Rc8 {[%clk 0:02:54.1]} 16. f5 {[%clk 0:02:47.8]} 16... Rhd8 {[%clk
0:02:53]} 17. g4 {[%clk 0:02:43.3]} 17... Ka8 {[%clk 0:02:48.1]} 18. g5 {[%clk
0:02:37.9]} 18... Qf8 {[%clk 0:02:24.2]} 19. h4 {[%clk 0:02:31.9]} 19... h6
{[%clk 0:02:22.5]} 20. f6 {[%clk 0:02:28.2]} 20... hxg5 {[%clk 0:02:22.2]} 21.
hxg5 {[%clk 0:02:27.4]} 21... gxf6 {[%clk 0:02:22.7]} 22. gxf6 {[%clk
0:02:24.8]} 22... Na5 {[%clk 0:02:16.7]} 23. Qg5 {[%clk 0:02:11.9]} 23... Nc4
{[%clk 0:02:13.1]} 24. Qg7 {[%clk 0:02:08.3]} 24... b5 {[%clk 0:01:59.4]} 25.
Bh5 {[%clk 0:02:04.7]} 25... b4 {[%clk 0:01:52.2]} 26. Nxd5 {[%clk 0:01:49.5]}
26... exd5 {[%clk 0:01:49.4]} 27. Qxf7 {[%clk 0:01:49.7]} 27... Qxf7 {[%clk
0:01:27.9]} 28. Bxf7 {[%clk 0:01:50.6]} 28... Bg4 {[%clk 0:01:28.3]} 29. Rc1
{[%clk 0:01:42.7]} 29... Ne4 {[%clk 0:01:21.7]} 30. Bxd5+ {[%clk 0:01:36.5]}
30... Rxd5 {[%clk 0:01:21.1]} 31. Rxe4 {[%clk 0:01:37.4]} 31... Nd2+ {[%clk
0:01:21.4]} 0-1

[Event "*** SCC Grand Prix: Titled Tuesday Blitz"]
[Site "Chess.com"]
[Date "2020.10.13"]
[Round "2"]
[White "mfwagnerpeixoto"]
[Black "Thee-Chessboy"]
[Result "0-1"]
[WhiteElo "2228"]
[BlackElo "2447"]
[TimeControl "180+1"]
[EndTime "10:14:35 PDT"]
[Termination "Thee-Chessboy won by resignation"]

1. e4 {[%clk 0:03:00.9]} 1... c5 {[%clk 0:02:59.4]} 2. Nf3 {[%clk 0:03:00.1]}
2... d6 {[%clk 0:02:59]} 3. d4 {[%clk 0:03:00.5]} 3... cxd4 {[%clk 0:02:59.5]}
4. Nxd4 {[%clk 0:03:01.4]} 4... Nf6 {[%clk 0:03:00]} 5. Nc3 {[%clk 0:03:01.9]}
5... a6 {[%clk 0:03:00.5]} 6. Bg5 {[%clk 0:03:01.1]} 6... e6 {[%clk 0:03:00.7]}
7. f4 {[%clk 0:03:00.1]} 7... Be7 {[%clk 0:03:01.3]} 8. Qf3 {[%clk 0:02:59.6]}
8... Qc7 {[%clk 0:03:01.8]} 9. O-O-O {[%clk 0:02:59.3]} 9... Nbd7 {[%clk
0:03:02.3]} 10. g4 {[%clk 0:02:59.3]} 10... h6 {[%clk 0:03:02.8]} 11. Bxf6
{[%clk 0:02:57.6]} 11... Bxf6 {[%clk 0:03:03]} 12. f5 {[%clk 0:02:57.6]} 12...
Ne5 {[%clk 0:03:02.5]} 13. Qe2 {[%clk 0:02:50.7]} 13... Bd7 {[%clk 0:02:59.5]}
14. h4 {[%clk 0:02:45.7]} 14... O-O-O {[%clk 0:02:58.8]} 15. Bg2 {[%clk
0:02:42.4]} 15... Kb8 {[%clk 0:02:57.8]} 16. Kb1 {[%clk 0:02:38.9]} 16... Rc8
{[%clk 0:02:57.5]} 17. fxe6 {[%clk 0:02:37.2]} 17... fxe6 {[%clk 0:02:57.1]} 18.
Bf1 {[%clk 0:02:11.6]} 18... Qb6 {[%clk 0:02:49]} 19. Nb3 {[%clk 0:02:08.9]}
19... Nc4 {[%clk 0:02:44.7]} 20. Rh3 {[%clk 0:01:48.6]} 20... Qb4 {[%clk
0:02:31.2]} 21. Rhd3 {[%clk 0:01:35.2]} 21... Nxb2 {[%clk 0:02:28.4]} 22. Kxb2
{[%clk 0:01:23.7]} 22... Bxc3+ {[%clk 0:02:16.6]} 23. Rxc3 {[%clk 0:01:22.2]}
23... Qxc3+ {[%clk 0:02:16.1]} 24. Kb1 {[%clk 0:01:22.6]} 24... Bb5 {[%clk
0:02:11.5]} 25. Qh2 {[%clk 0:01:16.4]} 25... Bxf1 {[%clk 0:02:10.3]} 26. Rxf1
{[%clk 0:01:17.3]} 26... Rc6 {[%clk 0:01:56.8]} 27. Rc1 {[%clk 0:01:04.5]} 27...
a5 {[%clk 0:01:53.1]} 0-1